[Event "*** Titled Tuesday Blitz"]
[Site "Chess.com"]
[Date "2020.04.07"]
[Round "8"]
[White "SHIVACalypso"]
[Black "annacramling"]
[Result "0-1"]
[WhiteElo "2194"]
[BlackElo "1977"]
[TimeControl "180+1"]
[EndTime "14:33:30 PDT"]
[Termination "annacramling won by resignation"]

1. Nf3 {[%clk 0:03:00.9]} 1... c5 {[%clk 0:02:57.7]} 2. c4 {[%clk 0:03:00.2]}
2... Nc6 {[%clk 0:02:57.1]} 3. g3 {[%clk 0:02:59.8]} 3... g6 {[%clk 0:02:57]} 4.
Bg2 {[%clk 0:03:00.3]} 4... Bg7 {[%clk 0:02:57.2]} 5. O-O {[%clk 0:02:59]} 5...
e5 {[%clk 0:02:57.1]} 6. Nc3 {[%clk 0:02:57.7]} 6... Nge7 {[%clk 0:02:55.6]} 7.
Ne1 {[%clk 0:02:50.9]} 7... d6 {[%clk 0:02:54.3]} 8. Nc2 {[%clk 0:02:50.7]} 8...
Be6 {[%clk 0:02:31.8]} 9. Ne3 {[%clk 0:02:49.1]} 9... O-O {[%clk 0:02:29.2]} 10.
Ned5 {[%clk 0:02:45.5]} 10... Rb8 {[%clk 0:02:26.9]} 11. a4 {[%clk 0:02:42]}
11... f5 {[%clk 0:01:43.6]} 12. d3 {[%clk 0:02:39]} 12... Kh8 {[%clk 0:01:18.3]}
13. f4 {[%clk 0:02:27.6]} 13... Nb4 {[%clk 0:01:14.9]} 14. e4 {[%clk 0:02:25.4]}
14... Nbxd5 {[%clk 0:01:12.5]} 15. cxd5 {[%clk 0:02:18.3]} 15... Bd7 {[%clk
0:01:09.8]} 16. Be3 {[%clk 0:02:11.5]} 16... exf4 {[%clk 0:01:07.2]} 17. gxf4
{[%clk 0:02:09.9]} 17... b6 {[%clk 0:01:03.9]} 18. d4 {[%clk 0:02:05.7]} 18...
fxe4 {[%clk 0:00:57.6]} 19. dxc5 {[%clk 0:02:04.7]} 19... bxc5 {[%clk
0:00:56.5]} 20. Nxe4 {[%clk 0:02:02.7]} 20... Nf5 {[%clk 0:00:52.9]} 21. Bf2
{[%clk 0:01:55.7]} 21... Rxb2 {[%clk 0:00:52]} 22. Rb1 {[%clk 0:01:52.9]} 22...
Rxb1 {[%clk 0:00:49.3]} 23. Qxb1 {[%clk 0:01:53.8]} 23... Bxa4 {[%clk 0:00:49]}
24. Qa2 {[%clk 0:01:49.6]} 24... Bb5 {[%clk 0:00:48]} 25. Rb1 {[%clk 0:01:44.8]}
25... a6 {[%clk 0:00:48.3]} 26. Ng5 {[%clk 0:01:36.7]} 26... Nd4 {[%clk
0:00:28.5]} 27. Bxd4 {[%clk 0:01:31.1]} 27... Bxd4+ {[%clk 0:00:28.1]} 28. Kh1
{[%clk 0:01:30.7]} 28... Rxf4 {[%clk 0:00:24.4]} 29. Ne6 {[%clk 0:01:27.4]}
29... Qf6 {[%clk 0:00:24.1]} 30. Nxf4 {[%clk 0:01:21.9]} 30... Qxf4 {[%clk
0:00:21]} 31. Qb3 {[%clk 0:01:03.7]} 31... c4 {[%clk 0:00:11.8]} 32. Qh3 {[%clk
0:01:02.1]} 32... Kg7 {[%clk 0:00:04.1]} 33. Rf1 {[%clk 0:01:01.3]} 33... Qg5
{[%clk 0:00:02.1]} 34. Qd7+ {[%clk 0:01:00.4]} 34... Bxd7 {[%clk 0:00:01.4]} 35.
Re1 {[%clk 0:00:56.7]} 35... c3 {[%clk 0:00:01.7]} 36. Re7+ {[%clk 0:00:54.8]}
36... Kh6 {[%clk 0:00:01.6]} 37. Rxd7 {[%clk 0:00:54.5]} 37... c2 {[%clk
0:00:02.2]} 38. h4 {[%clk 0:00:52.8]} 38... c1=Q+ {[%clk 0:00:03.1]} 39. Kh2
{[%clk 0:00:52.6]} 39... Qgf4+ {[%clk 0:00:03.8]} 40. Kh3 {[%clk 0:00:52.2]}
40... Qf5+ {[%clk 0:00:04.4]} 0-1

[Event "*** Titled Tuesday Blitz"]
[Site "Chess.com"]
[Date "2020.04.07"]
[Round "8"]
[White "iLuusions"]
[Black "serhanberat_ozdemir"]
[Result "0-1"]
[WhiteElo "2581"]
[BlackElo "2486"]
[TimeControl "180+1"]
[EndTime "14:33:38 PDT"]
[Termination "serhanberat_ozdemir won on time"]

1. d4 {[%clk 0:03:00.8]} 1... Nf6 {[%clk 0:02:59.6]} 2. c4 {[%clk 0:02:58.6]}
2... g6 {[%clk 0:02:59.4]} 3. Nc3 {[%clk 0:02:57.2]} 3... Bg7 {[%clk 0:02:59.5]}
4. e4 {[%clk 0:02:57]} 4... d6 {[%clk 0:02:59.5]} 5. h3 {[%clk 0:02:56.5]} 5...
O-O {[%clk 0:02:56.9]} 6. Bg5 {[%clk 0:02:55.2]} 6... c5 {[%clk 0:02:52.4]} 7.
d5 {[%clk 0:02:54.5]} 7... h6 {[%clk 0:02:52.5]} 8. Be3 {[%clk 0:02:53.4]} 8...
e6 {[%clk 0:02:50.1]} 9. Bd3 {[%clk 0:02:52.3]} 9... exd5 {[%clk 0:02:49.6]} 10.
cxd5 {[%clk 0:02:53.2]} 10... a6 {[%clk 0:02:48.2]} 11. a4 {[%clk 0:02:50.6]}
11... Nbd7 {[%clk 0:02:44.8]} 12. Nf3 {[%clk 0:02:47.4]} 12... Qc7 {[%clk
0:02:41]} 13. O-O {[%clk 0:02:45.4]} 13... Rb8 {[%clk 0:02:40.1]} 14. Re1 {[%clk
0:01:57.9]} 14... Re8 {[%clk 0:02:17.8]} 15. Qc2 {[%clk 0:01:44.6]} 15... c4
{[%clk 0:02:13.2]} 16. Be2 {[%clk 0:01:43.3]} 16... b5 {[%clk 0:02:13.5]} 17.
axb5 {[%clk 0:01:43.5]} 17... axb5 {[%clk 0:02:14.4]} 18. Ra7 {[%clk 0:01:43.2]}
18... Rb7 {[%clk 0:02:14.2]} 19. Nxb5 {[%clk 0:01:41.5]} 19... Qb8 {[%clk
0:01:16.7]} 20. Rxb7 {[%clk 0:01:37.1]} 20... Bxb7 {[%clk 0:01:17.6]} 21. Nc3
{[%clk 0:01:27.3]} 21... Nc5 {[%clk 0:01:10.7]} 22. Bxc5 {[%clk 0:01:04.9]}
22... dxc5 {[%clk 0:01:11.6]} 23. Bxc4 {[%clk 0:01:05.3]} 23... Nd7 {[%clk
0:01:08]} 24. Bb5 {[%clk 0:01:03.5]} 24... Re7 {[%clk 0:01:03.3]} 25. Bxd7
{[%clk 0:00:38.6]} 25... Rxd7 {[%clk 0:01:04.2]} 26. Na4 {[%clk 0:00:33]} 26...
Bf8 {[%clk 0:01:00]} 27. Nxc5 {[%clk 0:00:28]} 27... Rc7 {[%clk 0:00:58.3]} 28.
b4 {[%clk 0:00:28.1]} 28... Bxd5 {[%clk 0:00:54.4]} 29. exd5 {[%clk 0:00:11.1]}
29... Qxb4 {[%clk 0:00:54.6]} 30. Qd3 {[%clk 0:00:03]} 30... Rxc5 {[%clk
0:00:50.9]} 31. g3 {[%clk 0:00:02.3]} 31... Rc3 {[%clk 0:00:40.6]} 32. Qe4
{[%clk 0:00:01.1]} 32... Qxe4 {[%clk 0:00:35.5]} 0-1

[Event "*** Titled Tuesday Blitz"]
[Site "Chess.com"]
[Date "2020.04.07"]
[Round "8"]
[White "Tormoz"]
[Black "LiemLe"]
[Result "0-1"]
[WhiteElo "2669"]
[BlackElo "2946"]
[TimeControl "180+1"]
[EndTime "14:33:41 PDT"]
[Termination "LiemLe won by resignation"]

1. d4 {[%clk 0:03:00.9]} 1... Nf6 {[%clk 0:03:00.4]} 2. Nf3 {[%clk 0:03:00.3]}
2... e6 {[%clk 0:03:00.3]} 3. g3 {[%clk 0:02:58]} 3... b5 {[%clk 0:02:59.9]} 4.
Bg2 {[%clk 0:02:58.4]} 4... Bb7 {[%clk 0:02:59.7]} 5. O-O {[%clk 0:02:59.1]}
5... d5 {[%clk 0:02:57.8]} 6. a4 {[%clk 0:02:57.3]} 6... b4 {[%clk 0:02:57.5]}
7. c4 {[%clk 0:02:57.6]} 7... bxc3 {[%clk 0:02:37.5]} 8. Nxc3 {[%clk 0:02:57.6]}
8... Nbd7 {[%clk 0:02:37.8]} 9. Bf4 {[%clk 0:02:57.4]} 9... a6 {[%clk
0:02:20.3]} 10. a5 {[%clk 0:02:56.6]} 10... Be7 {[%clk 0:02:12]} 11. Qa4 {[%clk
0:02:50.4]} 11... O-O {[%clk 0:02:11.1]} 12. b4 {[%clk 0:02:50.4]} 12... Ne8
{[%clk 0:01:57.7]} 13. e4 {[%clk 0:01:44.5]} 13... dxe4 {[%clk 0:01:31.1]} 14.
Ne5 {[%clk 0:01:42.9]} 14... Ndf6 {[%clk 0:01:30.8]} 15. Rfd1 {[%clk 0:01:34.7]}
15... Nd6 {[%clk 0:01:21.5]} 16. Nc6 {[%clk 0:01:17.2]} 16... Qe8 {[%clk
0:01:21.2]} 17. Nxe7+ {[%clk 0:01:16.5]} 17... Qxe7 {[%clk 0:01:22.1]} 18. Rac1
{[%clk 0:00:50.2]} 18... Rfd8 {[%clk 0:01:11.9]} 19. Bg5 {[%clk 0:00:43.1]}
19... h6 {[%clk 0:00:56.9]} 20. Bxf6 {[%clk 0:00:43.3]} 20... gxf6 {[%clk
0:00:50.3]} 21. d5 {[%clk 0:00:44.2]} 21... f5 {[%clk 0:00:48.9]} 22. Qa2 {[%clk
0:00:35.3]} 22... Ne8 {[%clk 0:00:43]} 23. Bf1 {[%clk 0:00:29.2]} 23... exd5
{[%clk 0:00:41.1]} 24. Nxd5 {[%clk 0:00:28.6]} 24... Qe5 {[%clk 0:00:18.2]} 25.
Bc4 {[%clk 0:00:27.4]} 25... Kg7 {[%clk 0:00:17.1]} 26. Nf4 {[%clk 0:00:26.9]}
26... Nd6 {[%clk 0:00:16.7]} 27. Bd5 {[%clk 0:00:26.6]} 27... Rab8 {[%clk
0:00:13.9]} 28. Rxc7 {[%clk 0:00:26.2]} 28... e3 {[%clk 0:00:13.7]} 29. Bxb7
{[%clk 0:00:25.6]} 29... exf2+ {[%clk 0:00:11.9]} 30. Qxf2 {[%clk 0:00:24.7]}
30... Ne4 {[%clk 0:00:12.4]} 31. Qa7 {[%clk 0:00:20.7]} 31... Rxd1+ {[%clk
0:00:11.7]} 32. Kg2 {[%clk 0:00:21.2]} 32... Rd2+ {[%clk 0:00:11.7]} 33. Kg1
{[%clk 0:00:19.8]} 33... Qa1+ {[%clk 0:00:11.4]} 0-1

[Event "*** Titled Tuesday Blitz"]
[Site "Chess.com"]
[Date "2020.04.07"]
[Round "8"]
[White "thedjoker98"]
[Black "wnstop"]
[Result "0-1"]
[WhiteElo "2467"]
[BlackElo "2590"]
[TimeControl "180+1"]
[EndTime "14:33:42 PDT"]
[Termination "wnstop won by resignation"]

1. d4 {[%clk 0:03:00.9]} 1... Nf6 {[%clk 0:02:58.2]} 2. c4 {[%clk 0:03:01]} 2...
g6 {[%clk 0:02:57.6]} 3. Nc3 {[%clk 0:03:00.7]} 3... Bg7 {[%clk 0:02:57.5]} 4.
e4 {[%clk 0:03:00.8]} 4... d6 {[%clk 0:02:57.7]} 5. h3 {[%clk 0:03:00.9]} 5...
O-O {[%clk 0:02:56.5]} 6. Be3 {[%clk 0:03:01.2]} 6... e5 {[%clk 0:02:55.4]} 7.
d5 {[%clk 0:03:01.1]} 7... Na6 {[%clk 0:02:52.5]} 8. Nf3 {[%clk 0:02:55.7]} 8...
Nc5 {[%clk 0:02:35]} 9. Qc2 {[%clk 0:02:54.5]} 9... c6 {[%clk 0:02:30.6]} 10. b4
{[%clk 0:02:52.1]} 10... Ncxe4 {[%clk 0:02:17.3]} 11. Nxe4 {[%clk 0:02:53]}
11... Nxe4 {[%clk 0:02:16.5]} 12. Qxe4 {[%clk 0:02:53.9]} 12... f5 {[%clk
0:02:10.5]} 13. Qc2 {[%clk 0:02:30.8]} 13... f4 {[%clk 0:02:06.4]} 14. Rd1
{[%clk 0:02:06.5]} 14... fxe3 {[%clk 0:02:04.7]} 15. fxe3 {[%clk 0:02:07.4]}
15... cxd5 {[%clk 0:02:02.8]} 16. cxd5 {[%clk 0:02:06.1]} 16... Qb6 {[%clk
0:01:54.9]} 17. Qb3 {[%clk 0:02:05]} 17... e4 {[%clk 0:01:45.9]} 18. Nd4 {[%clk
0:02:03]} 18... Be5 {[%clk 0:01:45.4]} 19. Rd2 {[%clk 0:01:54.4]} 19... Bd7
{[%clk 0:01:39.1]} 20. Be2 {[%clk 0:01:49.3]} 20... Bg3+ {[%clk 0:01:24.5]} 21.
Kd1 {[%clk 0:01:48.7]} 21... Rf2 {[%clk 0:01:19.1]} 22. Bg4 {[%clk 0:01:46.5]}
22... Bxg4+ {[%clk 0:01:07.2]} 23. hxg4 {[%clk 0:01:44.7]} 23... Raf8 {[%clk
0:01:07.7]} 24. Ne2 {[%clk 0:01:17.3]} 24... Be5 {[%clk 0:01:04.7]} 25. Rc2
{[%clk 0:01:15]} 25... Qb5 {[%clk 0:01:00.7]} 26. Qc4 {[%clk 0:01:11.2]} 26...
Qa4 {[%clk 0:00:40.3]} 27. Qxe4 {[%clk 0:01:10]} 27... Rc8 {[%clk 0:00:35.8]}
28. Re1 {[%clk 0:01:04.6]} 28... Rxg2 {[%clk 0:00:27.6]} 29. Nd4 {[%clk
0:00:32.1]} 29... Rgxc2 {[%clk 0:00:16.9]} 30. Nxc2 {[%clk 0:00:33]} 30... Qxa2
{[%clk 0:00:15.6]} 0-1

[Event "*** Titled Tuesday Blitz"]
[Site "Chess.com"]
[Date "2020.04.07"]
[Round "8"]
[White "cuprichanin"]
[Black "Treacherous_horse64"]
[Result "0-1"]
[WhiteElo "2302"]
[BlackElo "2188"]
[TimeControl "180+1"]
[EndTime "14:33:48 PDT"]
[Termination "Treacherous_horse64 won by checkmate"]

1. Nc3 {[%clk 0:02:51.4]} 1... c6 {[%clk 0:02:58.6]} 2. e4 {[%clk 0:02:49.2]}
2... d5 {[%clk 0:02:59.5]} 3. d4 {[%clk 0:02:48.5]} 3... b5 {[%clk 0:02:59.5]}
4. exd5 {[%clk 0:02:23.9]} 4... b4 {[%clk 0:02:59.3]} 5. Ne4 {[%clk 0:02:17.9]}
5... cxd5 {[%clk 0:02:59.3]} 6. Ng3 {[%clk 0:02:16.9]} 6... e6 {[%clk 0:02:59]}
7. Nf3 {[%clk 0:02:16.1]} 7... Nf6 {[%clk 0:02:58]} 8. Bd3 {[%clk 0:02:06.7]}
8... a5 {[%clk 0:02:57.1]} 9. O-O {[%clk 0:02:06.3]} 9... Ba6 {[%clk 0:02:56.3]}
10. Re1 {[%clk 0:02:06.1]} 10... Bxd3 {[%clk 0:02:49.2]} 11. Qxd3 {[%clk
0:02:07]} 11... Nc6 {[%clk 0:02:49.2]} 12. Ne5 {[%clk 0:01:58.6]} 12... Qc7
{[%clk 0:02:48.9]} 13. f4 {[%clk 0:01:53.9]} 13... Rc8 {[%clk 0:02:36.2]} 14. f5
{[%clk 0:01:48.3]} 14... Nxd4 {[%clk 0:02:21.5]} 15. Bf4 {[%clk 0:01:17.9]}
15... Qb6 {[%clk 0:01:54.4]} 16. Be3 {[%clk 0:01:09.8]} 16... Bc5 {[%clk
0:01:53.8]} 17. fxe6 {[%clk 0:01:03.9]} 17... fxe6 {[%clk 0:01:53.6]} 18. c3
{[%clk 0:00:52.5]} 18... Nc6 {[%clk 0:01:45.8]} 19. Nxc6 {[%clk 0:00:43.8]}
19... Qxc6 {[%clk 0:01:45.1]} 20. cxb4 {[%clk 0:00:40.4]} 20... axb4 {[%clk
0:01:44]} 21. Rac1 {[%clk 0:00:39.7]} 21... Qb6 {[%clk 0:01:36.7]} 22. Rxc5
{[%clk 0:00:34.8]} 22... Rxc5 {[%clk 0:01:37.6]} 23. Qd4 {[%clk 0:00:34.9]}
23... Nd7 {[%clk 0:01:29.5]} 24. Qxg7 {[%clk 0:00:32.7]} 24... Rf8 {[%clk
0:01:26.6]} 25. Qxh7 {[%clk 0:00:18.2]} 25... Qc6 {[%clk 0:00:55.5]} 26. Nh5
{[%clk 0:00:09.9]} 26... Rc2 {[%clk 0:00:45.6]} 27. Ng7+ {[%clk 0:00:05.8]}
27... Kd8 {[%clk 0:00:45.8]} 28. Bg5+ {[%clk 0:00:05.2]} 28... Kc8 {[%clk
0:00:46]} 29. Nxe6 {[%clk 0:00:04.8]} 29... d4 {[%clk 0:00:43.4]} 30. Qh3 {[%clk
0:00:01.8]} 30... Rff2 {[%clk 0:00:38.6]} 31. Nxd4 {[%clk 0:00:01.9]} 31...
Rxg2+ {[%clk 0:00:37.4]} 32. Kf1 {[%clk 0:00:02.2]} 32... Rcf2# {[%clk 0:00:37]}
0-1

[Event "*** Titled Tuesday Blitz"]
[Site "Chess.com"]
[Date "2020.04.07"]
[Round "8"]
[White "Gennady_Kozlov"]
[Black "IMJonathanCarlstedt"]
[Result "1/2-1/2"]
[WhiteElo "2586"]
[BlackElo "2478"]
[TimeControl "180+1"]
[EndTime "14:33:49 PDT"]
[Termination "Game drawn by repetition"]

1. b3 {[%clk 0:03:00.9]} 1... d5 {[%clk 0:02:55.7]} 2. Bb2 {[%clk 0:03:01.8]}
2... Bg4 {[%clk 0:02:53.7]} 3. f3 {[%clk 0:03:01.4]} 3... Bc8 {[%clk 0:02:50.2]}
4. e3 {[%clk 0:03:01.9]} 4... c6 {[%clk 0:02:49.7]} 5. f4 {[%clk 0:03:01.7]}
5... Nf6 {[%clk 0:02:48]} 6. Nf3 {[%clk 0:03:02.2]} 6... Nbd7 {[%clk 0:02:47.9]}
7. Be2 {[%clk 0:02:59.5]} 7... e6 {[%clk 0:02:47.7]} 8. O-O {[%clk 0:03:00]}
8... Bd6 {[%clk 0:02:48.1]} 9. Qe1 {[%clk 0:03:00.6]} 9... Qc7 {[%clk 0:02:48]}
10. a4 {[%clk 0:02:57.2]} 10... e5 {[%clk 0:02:44.7]} 11. fxe5 {[%clk
0:02:51.4]} 11... Nxe5 {[%clk 0:02:45.6]} 12. Nxe5 {[%clk 0:02:51.1]} 12... Bxe5
{[%clk 0:02:46.5]} 13. Bxe5 {[%clk 0:02:51.2]} 13... Qxe5 {[%clk 0:02:46.9]} 14.
Nc3 {[%clk 0:02:51.8]} 14... O-O {[%clk 0:02:45.9]} 15. Qh4 {[%clk 0:02:50.7]}
15... h6 {[%clk 0:02:40.2]} 16. Rae1 {[%clk 0:02:41.2]} 16... Qg5 {[%clk
0:02:38.8]} 17. Qxg5 {[%clk 0:02:40.5]} 17... hxg5 {[%clk 0:02:39.7]} 18. Bd3
{[%clk 0:02:40.8]} 18... Be6 {[%clk 0:02:33.2]} 19. Bf5 {[%clk 0:02:39.5]} 19...
Rae8 {[%clk 0:02:30.9]} 20. Bxe6 {[%clk 0:02:37.7]} 20... Rxe6 {[%clk
0:02:31.8]} 21. Rf5 {[%clk 0:02:37.5]} 21... Nh7 {[%clk 0:02:30.8]} 22. Ne2
{[%clk 0:02:34.5]} 22... f6 {[%clk 0:02:27.8]} 23. Nd4 {[%clk 0:02:33.7]} 23...
Re5 {[%clk 0:02:22.5]} 24. b4 {[%clk 0:02:32.4]} 24... g6 {[%clk 0:02:16.7]} 25.
Rf2 {[%clk 0:02:28.3]} 25... f5 {[%clk 0:02:11.1]} 26. c3 {[%clk 0:02:28.1]}
26... g4 {[%clk 0:02:10.1]} 27. a5 {[%clk 0:02:23.6]} 27... a6 {[%clk
0:02:08.1]} 28. h4 {[%clk 0:02:20.7]} 28... Nf6 {[%clk 0:02:03.4]} 29. d3 {[%clk
0:02:12.4]} 29... Rfe8 {[%clk 0:02:01.5]} 30. Nc2 {[%clk 0:02:12.4]} 30... Nh5
{[%clk 0:01:55.3]} 31. Rb1 {[%clk 0:01:56.9]} 31... g3 {[%clk 0:01:39.3]} 32.
Rf3 {[%clk 0:01:55]} 32... Kg7 {[%clk 0:01:30.6]} 33. Kf1 {[%clk 0:01:52.9]}
33... Rh8 {[%clk 0:01:27.5]} 34. Ke2 {[%clk 0:01:52.2]} 34... f4 {[%clk
0:01:19.8]} 35. Kd2 {[%clk 0:01:51.1]} 35... Rhe8 {[%clk 0:01:17.5]} 36. Rbf1
{[%clk 0:01:47.7]} 36... Kh6 {[%clk 0:01:08.2]} 37. d4 {[%clk 0:01:44.1]} 37...
Re4 {[%clk 0:01:05]} 38. Kd3 {[%clk 0:01:44]} 38... g5 {[%clk 0:00:57]} 39.
hxg5+ {[%clk 0:01:41.6]} 39... Kxg5 {[%clk 0:00:57.9]} 40. Kd2 {[%clk
0:01:32.5]} 40... Kg4 {[%clk 0:00:53.9]} 41. Kd3 {[%clk 0:01:29.4]} 41... Kg5
{[%clk 0:00:45.2]} 42. Kd2 {[%clk 0:01:28.7]} 42... Kf5 {[%clk 0:00:45.2]} 43.
Kd3 {[%clk 0:01:22.1]} 43... Kg4 {[%clk 0:00:45.1]} 44. Kd2 {[%clk 0:01:20.8]}
44... Kg5 {[%clk 0:00:45]} 45. Ke2 {[%clk 0:01:16.3]} 45... fxe3 {[%clk
0:00:31.6]} 46. Nxe3 {[%clk 0:01:15.5]} 46... Nf4+ {[%clk 0:00:30.2]} 47. Kd2
{[%clk 0:01:15.5]} 47... Nh5 {[%clk 0:00:13.6]} 48. Rf5+ {[%clk 0:01:13.9]}
48... Kg6 {[%clk 0:00:13.8]} 49. R5f3 {[%clk 0:01:05.4]} 49... Kg5 {[%clk
0:00:13.7]} 50. Kd3 {[%clk 0:01:00.9]} 50... Nf4+ {[%clk 0:00:13]} 51. Kd2
{[%clk 0:00:48.3]} 51... Nh5 {[%clk 0:00:13.1]} 1/2-1/2

[Event "*** Titled Tuesday Blitz"]
[Site "Chess.com"]
[Date "2020.04.07"]
[Round "8"]
[White "Kislov_Oleg"]
[Black "rugbyclub"]
[Result "1-0"]
[WhiteElo "2428"]
[BlackElo "2106"]
[TimeControl "180+1"]
[EndTime "14:33:49 PDT"]
[Termination "Kislov_Oleg won by resignation"]

1. e4 {[%clk 0:02:59.3]} 1... e5 {[%clk 0:02:58]} 2. Nf3 {[%clk 0:02:59]} 2...
Nc6 {[%clk 0:02:57.4]} 3. d4 {[%clk 0:02:57.9]} 3... exd4 {[%clk 0:02:52.3]} 4.
Nxd4 {[%clk 0:02:58]} 4... Nf6 {[%clk 0:02:49.3]} 5. Nxc6 {[%clk 0:02:55.3]}
5... bxc6 {[%clk 0:02:48]} 6. e5 {[%clk 0:02:55.6]} 6... Nd5 {[%clk 0:02:48.1]}
7. c4 {[%clk 0:02:55.5]} 7... Nb6 {[%clk 0:02:45.6]} 8. Bd3 {[%clk 0:02:54.6]}
8... Qe7 {[%clk 0:02:42.8]} 9. Qe2 {[%clk 0:02:54.1]} 9... a5 {[%clk 0:02:37.8]}
10. O-O {[%clk 0:02:47.1]} 10... g6 {[%clk 0:02:32.7]} 11. b3 {[%clk 0:02:35.1]}
11... Bg7 {[%clk 0:02:26.2]} 12. f4 {[%clk 0:02:25.8]} 12... O-O {[%clk
0:02:22.1]} 13. Ba3 {[%clk 0:02:21.4]} 13... c5 {[%clk 0:02:21.2]} 14. Nc3
{[%clk 0:02:15.9]} 14... d6 {[%clk 0:02:13.9]} 15. Qf2 {[%clk 0:02:11.4]} 15...
a4 {[%clk 0:02:10.6]} 16. Ne4 {[%clk 0:01:45.4]} 16... Rd8 {[%clk 0:01:59.6]}
17. Bc2 {[%clk 0:01:17.1]} 17... Bb7 {[%clk 0:01:47.9]} 18. Bb2 {[%clk
0:01:06.8]} 18... a3 {[%clk 0:01:40.6]} 19. Bc3 {[%clk 0:01:06.6]} 19... Rab8
{[%clk 0:01:26.5]} 20. Rae1 {[%clk 0:01:05.2]} 20... dxe5 {[%clk 0:01:26.1]} 21.
Nxc5 {[%clk 0:00:48.6]} 21... Nd7 {[%clk 0:01:15.7]} 22. Nxb7 {[%clk 0:00:41.9]}
22... Rxb7 {[%clk 0:01:14]} 23. fxe5 {[%clk 0:00:42]} 23... Bxe5 {[%clk
0:01:03.7]} 24. Bxe5 {[%clk 0:00:24.7]} 24... Nxe5 {[%clk 0:01:02.5]} 25. Be4
{[%clk 0:00:25.4]} 25... Rbb8 {[%clk 0:00:49]} 26. Bd5 {[%clk 0:00:24.4]} 26...
Rf8 {[%clk 0:00:46.3]} 27. Qd4 {[%clk 0:00:20.9]} 27... Rbe8 {[%clk 0:00:33.1]}
28. Re3 {[%clk 0:00:18.9]} 28... c6 {[%clk 0:00:29.1]} 29. Rfe1 {[%clk
0:00:19.1]} 29... cxd5 {[%clk 0:00:25.9]} 30. Rxe5 {[%clk 0:00:19.3]} 30... Qb4
{[%clk 0:00:19.4]} 31. Rxe8 {[%clk 0:00:17]} 1-0

[Event "*** Titled Tuesday Blitz"]
[Site "Chess.com"]
[Date "2020.04.07"]
[Round "8"]
[White "severomorskij"]
[Black "FabianoCaruana"]
[Result "0-1"]
[WhiteElo "2852"]
[BlackElo "3041"]
[TimeControl "180+1"]
[EndTime "14:33:50 PDT"]
[Termination "FabianoCaruana won on time"]

1. d4 {[%clk 0:03:00.9]} 1... d5 {[%clk 0:03:00.3]} 2. c4 {[%clk 0:03:00.4]}
2... c6 {[%clk 0:03:00.8]} 3. Nc3 {[%clk 0:02:59.3]} 3... Nf6 {[%clk 0:03:01.1]}
4. Nf3 {[%clk 0:02:59.3]} 4... dxc4 {[%clk 0:03:00.2]} 5. a4 {[%clk 0:02:59.1]}
5... Bf5 {[%clk 0:02:59.9]} 6. Nh4 {[%clk 0:02:59.1]} 6... Bc8 {[%clk 0:02:55]}
7. e3 {[%clk 0:02:58.4]} 7... Bg4 {[%clk 0:02:55.1]} 8. Nf3 {[%clk 0:02:49.1]}
8... e6 {[%clk 0:02:54.2]} 9. Bxc4 {[%clk 0:02:48.7]} 9... Bb4 {[%clk
0:02:54.1]} 10. h3 {[%clk 0:02:46.6]} 10... Bh5 {[%clk 0:02:52.8]} 11. O-O
{[%clk 0:02:44.7]} 11... Nbd7 {[%clk 0:02:52.8]} 12. Bd3 {[%clk 0:02:16.8]}
12... O-O {[%clk 0:02:50.4]} 13. e4 {[%clk 0:02:13.7]} 13... e5 {[%clk
0:02:43.9]} 14. g4 {[%clk 0:01:44.3]} 14... Nxg4 {[%clk 0:02:42.1]} 15. hxg4
{[%clk 0:01:42.4]} 15... Bxg4 {[%clk 0:02:43]} 16. Be2 {[%clk 0:01:38.7]} 16...
Bh3 {[%clk 0:02:39.6]} 17. dxe5 {[%clk 0:01:28.8]} 17... Bxf1 {[%clk 0:02:37.7]}
18. Qxf1 {[%clk 0:01:24.2]} 18... Re8 {[%clk 0:02:32.2]} 19. Bf4 {[%clk
0:01:22]} 19... Nf8 {[%clk 0:02:29.8]} 20. Rd1 {[%clk 0:01:11.6]} 20... Qa5
{[%clk 0:02:29.7]} 21. Bg3 {[%clk 0:00:58.3]} 21... Bxc3 {[%clk 0:02:27.1]} 22.
bxc3 {[%clk 0:00:58]} 22... Qxc3 {[%clk 0:02:24.4]} 23. Rc1 {[%clk 0:00:47.9]}
23... Qb3 {[%clk 0:02:15]} 24. Ng5 {[%clk 0:00:42.1]} 24... Qxa4 {[%clk
0:01:59]} 25. Bc4 {[%clk 0:00:38.7]} 25... Re7 {[%clk 0:01:59.1]} 26. Qh3 {[%clk
0:00:27.3]} 26... Rd8 {[%clk 0:01:32]} 27. Kg2 {[%clk 0:00:23.5]} 27... b5
{[%clk 0:01:28.7]} 28. Nxf7 {[%clk 0:00:16.3]} 28... Rxf7 {[%clk 0:01:25.9]} 29.
Bxf7+ {[%clk 0:00:15.9]} 29... Kxf7 {[%clk 0:01:26.1]} 30. Qf5+ {[%clk
0:00:16.1]} 30... Kg8 {[%clk 0:01:25.8]} 31. e6 {[%clk 0:00:16.5]} 31... Ng6
{[%clk 0:01:26]} 32. e7 {[%clk 0:00:10.8]} 32... Nxe7 {[%clk 0:01:09.1]} 33.
Qe6+ {[%clk 0:00:11]} 33... Kf8 {[%clk 0:01:09.5]} 34. Bh4 {[%clk 0:00:08.4]}
34... Ng6 {[%clk 0:00:34.1]} 35. Qf5+ {[%clk 0:00:07.3]} 35... Ke8 {[%clk
0:00:34.7]} 36. Qe6+ {[%clk 0:00:06.5]} 36... Kf8 {[%clk 0:00:34.8]} 37. Qf5+
{[%clk 0:00:06.6]} 37... Ke8 {[%clk 0:00:35.3]} 38. Bxd8 {[%clk 0:00:04.1]}
38... Kxd8 {[%clk 0:00:36.2]} 39. Qg5+ {[%clk 0:00:03.6]} 39... Kc7 {[%clk
0:00:35.3]} 40. Qg3+ {[%clk 0:00:03.5]} 40... Kb7 {[%clk 0:00:34.4]} 41. Qd3
{[%clk 0:00:02.9]} 41... Nf4+ {[%clk 0:00:34]} 0-1